Workbook

Sheet TLP SAC
A5: MODELO - Deve ser adaptado utilizando os valores, taxas e prazos do contrato
A7: Valores em R$
A8: Saldo
A9: Data | B9: Valor | C9: Juros Prefixados (% a.a.) | D9: Spread BNDES (% a.a.) | E9: Taxa Nominal (% a.a.)
A10: 2025-07-01 | B10: 6296592 | C10: 7.61 | D10: 1.15 | E10: =((1+C10/100)*(1+D10/100)-1)*100 -> 8.847515
A12: Valores em R$
A13: Data de Vencimento | B13: Principal | C13: IPCA* | G13: Dias Úteis | H13: Fator Juros Préfixados | I13: Fator Spread BNDES | J13: Fator IPCA | K13: Fator Juros | L13: Juros Compensatórios | M13: Amortização | O13: Prestação
C14: Data ref. | D14: Data próx. | E14: % a.m. | F14: dut | M14: Parcelas Restantes | N14: Valor
A16: 2025-07-15 | B16: =round_to_even((B10),2) -> 6296592 | C16: 2025-06-15 | D16: 2025-07-15 | E16: 0.26 | F16: =NETWORKDAYS(C16,D16-1,feriados) -> 20 | G16: =NETWORKDAYS(A10,A16-1,feriados) -> 10 | H16: =(1+$C$10/100)^($G16/252) -> 1.002914692 | I16: =(1+$D$10/100)^($G16/252) -> 1.000453848 | J16: =(1+E16/100)^(G16/F16) -> 1.001299156 | K16: =H16*I16*J16 -> 1.004673397 | O16: =L16+N16 -> 0
A17: 2025-08-15 | B17: =round_to_even((B16-N16),2) -> 6296592 | C17: 2025-07-15 | D17: 2025-08-15 | E17: 0.24 | F17: 23 | G17: =NETWORKDAYS(A16,A17-1,feriados) -> 23 | H17: =(1+$C$10/100)^($G17/252) -> 1.006716495 | I17: =(1+$D$10/100)^($G17/252) -> 1.001044159 | J17: 1.0024 | K17: =K16*H17*I17*J17 -> 1.01490731 | L17: =round_to_even(B17*(K17-1),2) -> 93865.25 | M17: 24 | N17: =round_to_even(B17/M17,2) -> 262358 | O17: 356223.25
A18: 2025-09-15 | B18: =round_to_even((B17-N17),2) -> 6034234 | C18: 2025-08-15 | D18: 2025-09-15 | E18: 0.26 | F18: 21 | G18: 21 | H18: =(1+$C$10/100)^($G18/252) -> 1.006130666 | I18: =(1+$D$10/100)^($G18/252) -> 1.000953319 | J18: 1.0026 | K18: =H18*I18*J18 -> 1.009708263 | L18: =round_to_even(B18*(K18-1),2) -> 58581.93 | M18: =M17-1 -> 23 | N18: =round_to_even(B18/M18,2) -> 262358 | O18: 320939.93
A19: 2025-10-15 | B19: =round_to_even((B18-N18),2) -> 5771876 | C19: 2025-09-15 | D19: 2025-10-15 | E19: -0.11 | F19: 22 | G19: 22 | H19: =(1+$C$10/100)^($G19/252) -> 1.006423538 | I19: =(1+$D$10/100)^($G19/252) -> 1.000998738 | J19: 0.9989 | K19: =H19*I19*J19 -> 1.006320519 | L19: =round_to_even(B19*(K19-1),2) -> 36481.25 | M19: =M18-1 -> 22 | N19: =round_to_even(B19/M19,2) -> 262358 | O19: 298839.25
A20: 2025-11-17 | B20: =round_to_even((B19-N19),2) -> 5509518 | C20: 2025-10-15 | D20: 2025-11-17 | E20: 0.48 | F20: 23 | G20: 23 | H20: =(1+$C$10/100)^($G20/252) -> 1.006716495 | I20: =(1+$D$10/100)^($G20/252) -> 1.001044159 | J20: 1.0048 | K20: =H20*I20*J20 -> 1.012604952 | L20: =round_to_even(B20*(K20-1),2) -> 69447.21 | M20: =M19-1 -> 21 | N20: =round_to_even(B20/M20,2) -> 262358 | O20: 331805.21
A21: 2025-12-15 | B21: =round_to_even((B20-N20),2) -> 5247160 | C21: 2025-11-15 | D21: 2025-12-15 | E21: 0.09 | F21: 19 | G21: 19 | H21: 1.005545177 | I21: 1.000862488 | J21: 1.0009 | K21: 1.007318218 | L21: =round_to_even(B21*(K21-1),2) -> 38399.86 | M21: 20 | N21: =round_to_even(B21/M21,2) -> 262358 | O21: 300757.86
A22: 2026-01-15 | B22: =round_to_even((B21-N21),2) -> 4984802 | C22: 2025-12-15 | D22: 2026-01-15 | E22: 0.18 | F22: =NETWORKDAYS(C22,D22-1,feriados) -> 21 | G22: 21 | H22: 1.006130666 | I22: 1.000953319 | J22: =(1+E22/100)^(G22/F22) -> 1.0018 | K22: =H22*I22*J22 -> 1.008902591 | L22: =round_to_even(B22*(K22-1),2) -> 44377.65 | M22: 19 | N22: =round_to_even(B22/M22,2) -> 262358 | O22: =L22+N22 -> 306735.65
A23: 2026-02-18 | B23: =round_to_even((B22-N22),2) -> 4722444 | C23: 2026-01-15 | D23: 2026-02-18 | E23: 0.33 | F23: 22 | G23: 22 | H23: 1.006423538 | I23: 1.000998738 | J23: 1.0033 | K23: 1.010753206 | L23: =round_to_even(B23*(K23-1),2) -> 50781.41 | M23: 18 | N23: =round_to_even(B23/M23,2) -> 262358 | O23: 313139.41
A24: 2026-03-16 | B24: =round_to_even((B23-N23),2) -> 4460086 | C24: 2026-02-15 | D24: 2026-03-16 | E24: 0.33 | F24: =NETWORKDAYS(C24,D24-1,feriados) -> 18 | G24: =NETWORKDAYS(A23,A24-1,feriados) -> 18 | H24: 1.00525256 | I24: 1.000817075 | J24: =(1+E24/100)^(G24/F24) -> 1.0033 | K24: =H24*I24*J24 -> 1.009393971 | L24: =round_to_even(B24*(K24-1),2) -> 41897.92 | M24: 17 | N24: =round_to_even(B24/M24,2) -> 262358 | O24: =L24+N24 -> 304255.92
A25: 2026-04-15 | B25: =round_to_even((B24-N24),2) -> 4197728 | C25: 2026-03-15 | D25: 2026-04-15 | E25: 0.7 | F25: =NETWORKDAYS(C25,D25-1,feriados) -> 21 | G25: =NETWORKDAYS(A24,A25-1,feriados) -> 21 | H25: 1.006130666 | I25: 1.000953319 | J25: =(1+E25/100)^(G25/F25) -> 1.007 | K25: =H25*I25*J25 -> 1.014139458 | L25: =round_to_even(B25*(K25-1),2) -> 59353.6 | M25: 16 | N25: =round_to_even(B25/M25,2) -> 262358 | O25: =L25+N25 -> 321711.6
A26: Continua...
A27: * Disponível em Moedas Contratuais, no site do BNDES, cód TLP IPCA (236). Se a taxa vigente para o período de cálculo ainda não tiver sido divulgada, o sistema projeta utilizando a última disponível.

Sheet Feriados
A1: FERIADOS
A2: 2009-01-01
A3: 2009-02-23
A4: 2009-02-24
A5: 2009-04-10
A6: 2009-04-21
A7: 2009-05-01
A8: 2009-06-11
A9: 2009-09-07
A10: 2009-10-12
A11: 2009-11-02
A12: 2009-11-15
A13: 2009-12-25
A14: 2010-01-01
A15: 2010-02-15
A16: 2010-02-16
A17: 2010-04-02
A18: 2010-04-21
A19: 2010-05-01
A20: 2010-06-03
A21: 2010-09-07
A22: 2010-10-12
A23: 2010-11-02
A24: 2010-11-15
A25: 2010-12-25
A26: 2011-01-01
A27: 2011-03-07
A28: 2011-03-08
A29: 2011-04-21
A30: 2011-04-22
A31: 2011-05-01
A32: 2011-06-23
A33: 2011-09-07
A34: 2011-10-12
A35: 2011-11-02
A36: 2011-11-15
A37: 2011-12-25
A38: 2012-01-01
A39: 2012-02-20
A40: 2012-02-21
A41: 2012-04-06
A42: 2012-04-21
A43: 2012-05-01
A44: 2012-06-07
A45: 2012-09-07
A46: 2012-10-12
A47: 2012-11-02
A48: 2012-11-15
A49: 2012-12-25
A50: 2013-01-01
A51: 2013-02-11
A52: 2013-02-12
A53: 2013-03-29
A54: 2013-04-21
A55: 2013-05-01
A56: 2013-05-30
A57: 2013-09-07
A58: 2013-10-12
A59: 2013-11-02
A60: 2013-11-15
A61: 2013-12-25
A62: 2014-01-01
A63: 2014-03-03
A64: 2014-03-04
A65: 2014-04-18
A66: 2014-04-21
A67: 2014-05-01
A68: 2014-06-19
A69: 2014-09-07
A70: 2014-10-12
A71: 2014-11-02
A72: 2014-11-15
A73: 2014-12-25
A74: 2015-01-01
A75: 2015-02-16
A76: 2015-02-17
A77: 2015-04-03
A78: 2015-04-21
A79: 2015-05-01
A80: 2015-06-04
A81: 2015-09-07
A82: 2015-10-12
A83: 2015-11-02
A84: 2015-11-15
A85: 2015-12-25
A86: 2016-01-01
A87: 2016-02-08
A88: 2016-02-09
A89: 2016-03-25
A90: 2016-04-21
A91: 2016-05-01
A92: 2016-05-26
A93: 2016-09-07
A94: 2016-10-12
A95: 2016-11-02
A96: 2016-11-15
A97: 2016-12-25
A98: 2017-01-01
A99: 2017-02-27
A100: 2017-02-28
A101: 2017-04-14
A102: 2017-04-21
A103: 2017-05-01
A104: 2017-06-15
A105: 2017-09-07
A106: 2017-10-12
A107: 2017-11-02
A108: 2017-11-15
A109: 2017-12-25
A110: 2018-01-01
A111: 2018-02-12
A112: 2018-02-13
A113: 2018-03-30
A114: 2018-04-21
A115: 2018-05-01
A116: 2018-05-31
A117: 2018-09-07
A118: 2018-10-12
A119: 2018-11-02
A120: 2018-11-15
A121: 2018-12-25
A122: 2019-01-01
A123: 2019-03-04
A124: 2019-03-05
A125: 2019-04-19
A126: 2019-04-21
A127: 2019-05-01
A128: 2019-06-20
A129: 2019-09-07
A130: 2019-10-12
A131: 2019-11-02
A132: 2019-11-15
A133: 2019-12-25
A134: 2020-01-01
A135: 2020-02-24
A136: 2020-02-25
A137: 2020-04-10
A138: 2020-04-21
A139: 2020-05-01
A140: 2020-06-11
A141: 2020-09-07
A142: 2020-10-12
A143: 2020-11-02
A144: 2020-11-15
A145: 2020-12-25
A146: 2021-01-01
A147: 2021-02-15
A148: 2021-02-16
A149: 2021-04-02
A150: 2021-04-21
A151: 2021-05-01
A152: 2021-06-03
A153: 2021-09-07
A154: 2021-10-12
A155: 2021-11-02
A156: 2021-11-15
A157: 2021-12-25
A158: 2022-01-01
A159: 2022-02-28
A160: 2022-03-01
A161: 2022-04-15
A162: 2022-04-21
A163: 2022-05-01
A164: 2022-06-16
A165: 2022-09-07
A166: 2022-10-12
A167: 2022-11-02
A168: 2022-11-15
A169: 2022-12-25
A170: 2023-01-01
A171: 2023-02-20
A172: 2023-02-21
A173: 2023-04-07
A174: 2023-04-21
A175: 2023-05-01
A176: 2023-06-08
A177: 2023-09-07
A178: 2023-10-12
A179: 2023-11-02
A180: 2023-11-15
A181: 2023-12-25
A182: 2024-01-01
A183: 2024-02-12
A184: 2024-02-13
A185: 2024-03-29
A186: 2024-04-21
A187: 2024-05-01
A188: 2024-05-30
A189: 2024-09-07
A190: 2024-10-12
A191: 2024-11-02
A192: 2024-11-15
A193: 2024-11-20
A194: 2024-12-25
A195: 2025-01-01
A196: 2025-03-03
A197: 2025-03-04
A198: 2025-04-18
A199: 2025-04-21
A200: 2025-05-01
... 462 more rows

Sheet Série IPCA
J14: Atenção:
J15: Atualizar a tabela com a taxa disponível no site do BNDES, em Moedas Contratuais, Sigla: cód TLP IPCA (236)
J16: https://www.bndes.gov.br/SiteBNDES/bndes/bndes_pt/Galerias/Convivencia/Moedas_Contratuais/index.html
J17: Se a taxa ainda não tiver sido divulgada, o sistema projeta utilizando a última disponível.
